fUSD/lending_fUSD_20240125
["ID","MTS","AMOUNT","RATE_DAILY","PERIOD"]
[312670518,1706142654347,-500.0,0.00049589,31]
[312670519,1706142654357,-500.0,0.00049589,31]
[312670520,1706142654367,-500.0,0.00049589,31]
[312670521,1706142654376,-524.49,0.00049589,31]
[312670522,1706142654385,-500.0,0.00049589,31]
[312670523,1706142654395,-500.0,0.00049589,31]
[312670524,1706142654405,-544.16,0.00049589,31]
[312670525,1706142654414,-500.0,0.00049589,31]
[312670526,1706142654423,-500.0,0.00049589,31]
[312670527,1706142654432,-500.0,0.00049589,31]
[312670528,1706142654441,-2294.01,0.00049589,31]
[312670529,1706142654450,-500.0,0.00049589,31]
[312670530,1706142654460,-242.9521627,0.00049589,31]
[312670531,1706142654470,-500.0,0.00049589,31]
[312670532,1706142654479,-500.0,0.00049589,31]
[312670533,1706142654488,-671.26,0.00049589,31]
[312670534,1706142654497,-583.12,0.00049589,31]
[312670535,1706142654506,-830.43,0.00049589,31]
[312670536,1706142654515,-652.75,0.00049589,31]
[312670537,1706142654524,-2589.2,0.00049589,31]
[312670538,1706142654534,-556.8,0.00049589,31]
[312670539,1706142654544,-500.0,0.00049589,31]
[312670540,1706142654555,-500.0,0.00049589,31]
[312670541,1706142654565,-545.42,0.00049589,31]
[312670542,1706142654574,-541.32,0.00049589,31]
[312670543,1706142654583,-500.0,0.00049589,31]
[312670544,1706142654592,-545.58,0.00049589,31]
[312670545,1706142654601,-500.0,0.00049589,31]
[312670546,1706142654610,-659.09,0.00049589,31]
[312670547,1706142654620,-586.96,0.00049589,31]
[312670548,1706142654629,-2351.31,0.00049589,31]
[312670549,1706142654639,-1206.46,0.00049589,31]
[312670550,1706142654649,-500.0,0.00049589,31]
[312670551,1706142654658,-583.57,0.00049589,31]
[312670552,1706142654667,-524.43,0.00049589,31]
[312670553,1706142654677,-204.86899747,0.00049589,31]
[312670554,1706142654686,-500.0,0.00049589,31]
[312670555,1706142654696,-596.67,0.00049589,31]
[312670556,1706142654706,-500.0,0.00049589,30]
[312670557,1706142654715,-966.39,0.00049589,31]
[312670558,1706142654724,-612.43,0.00049589,31]
[312670559,1706142654734,-500.0,0.00049589,31]
[312670560,1706142654743,-500.0,0.00049589,31]
[312670561,1706142654752,-683.16,0.00049589,31]
[312670562,1706142654762,-500.0,0.00049589,31]
[312670563,1706142654772,-1407.74,0.00049589,31]
[312670564,1706142654782,-500.0,0.00049589,31]
[312670565,1706142654791,-500.0,0.00049589,31]
[312670566,1706142654803,-710.01,0.00049589,31]
[312670567,1706142654812,-500.0,0.00049589,31]
[312670568,1706142654821,-500.0,0.00049589,31]
[312670569,1706142654830,-5543.02,0.00049589,31]
[312670570,1706142654840,-500.0,0.00049589,31]
[312670571,1706142654850,-500.0,0.00049589,31]
[312670572,1706142654860,-2066.55,0.00049589,31]
[312670573,1706142654869,-500.0,0.00049589,31]
[312670574,1706142654879,-620.76,0.00049589,31]
[312670575,1706142654888,-1016.7,0.00049589,31]
[312670576,1706142654898,-1226.31,0.00049589,31]
[312670577,1706142654907,-563.82,0.00049589,31]
[312670578,1706142654916,-500.0,0.00049589,31]
[312670579,1706142654925,-500.0,0.00049589,31]
[312670580,1706142654935,-552.79,0.00049589,31]
[312670581,1706142654944,-742.38,0.00049589,31]
[312670582,1706142654953,-500.0,0.00049589,31]
[312670583,1706142654963,-547.01,0.00049589,31]
[312670584,1706142654972,-3013.17,0.00049589,31]
[312670585,1706142654982,-514.66,0.00049589,31]
[312670586,1706142654991,-540.87,0.00049589,31]
[312670587,1706142655000,-712.54,0.00049589,31]
[312670588,1706142655009,-778.86,0.00049589,31]
[312670589,1706142655018,-500.0,0.00049589,31]
[312670590,1706142655027,-2280.94,0.00049589,31]
[312670591,1706142655038,-950.67,0.00049589,31]
[312670592,1706142655047,-500.0,0.00049589,31]
[312670593,1706142655056,-500.0,0.00049589,31]
[312670594,1706142655065,-500.0,0.00049589,31]
[312670595,1706142655074,-500.0,0.00049589,31]
[312670596,1706142655084,-1663.46,0.00049589,31]
[312670597,1706142655094,-500.0,0.00049589,31]
[312670598,1706142655104,-500.0,0.00049589,31]
[312670599,1706142655113,-649.21,0.00049589,31]
[312670600,1706142655122,-787.85,0.00049589,31]
[312670601,1706142655131,-1247.69,0.00049589,31]
[312670602,1706142655140,-1073.61,0.00049589,31]
[312670603,1706142655149,-500.0,0.00049589,31]
[312670604,1706142655158,-500.0,0.00049589,31]
[312670605,1706142655168,-500.0,0.00049589,31]
[312670606,1706142655177,-500.0,0.00049589,31]
[312670607,1706142655186,-500.0,0.00049589,31]
[312670608,1706142655195,-1265.65,0.00049589,31]
[312670609,1706142655204,-500.0,0.00049589,31]
[312670610,1706142655213,-618.27,0.00049589,31]
[312670611,1706142655222,-500.0,0.00049589,31]
[312670612,1706142655231,-2426.6,0.00049589,31]
[312670613,1706142655240,-3061.04,0.00049589,31]
[312670614,1706142655249,-500.0,0.00049589,31]
[312670615,1706142655258,-1315.35,0.00049589,31]
[312670616,1706142655267,-500.0,0.00049589,31]
[312670617,1706142655276,-700.1,0.00049589,31]
[312670618,1706142655286,-706.67,0.00049589,31]
[312670619,1706142655296,-500.0,0.00049589,31]
[312670620,1706142655305,-500.0,0.00049589,31]
[312670621,1706142655314,-660.57,0.00049589,31]
[312670622,1706142655323,-500.0,0.00049589,31]
[312670623,1706142655333,-733.61,0.00049589,31]
[312670624,1706142655342,-860.59,0.00049589,31]
[312670625,1706142655351,-388.50918634,0.00049589,14]
[312670626,1706142655361,-500.0,0.00049589,31]
[312670627,1706142655370,-1000.0,0.00049589,7]
[312670628,1706142655379,-553.53,0.00049589,31]
[312670629,1706142655389,-605.74,0.00049589,31]
[312670630,1706142655399,-501.79,0.00049589,31]
[312670631,1706142655408,-500.0,0.00049589,31]
[312670632,1706142655417,-500.0,0.00049589,31]
[312670633,1706142655427,-564.19,0.00049589,31]
[312670634,1706142655436,-740.74,0.00049589,31]
[312670635,1706142655445,-500.0,0.00049589,31]
[312670636,1706142655454,-500.0,0.00049589,31]
[312670637,1706142655464,-1295.4,0.00049589,31]
[312670638,1706142655473,-519.74,0.00049589,31]
[312670639,1706142655483,-500.0,0.00049589,31]
[312670640,1706142655492,-500.0,0.00049589,31]
[312670641,1706142655502,-500.0,0.00049589,31]
[312670642,1706142655511,-649.59,0.00049589,31]
[312670643,1706142655520,-537.1,0.00049589,31]
[312670644,1706142655530,-500.0,0.00049589,31]
[312670645,1706142655541,-599.29,0.00049589,31]
[312670646,1706142655550,-765.11,0.00049589,31]
[312670647,1706142655560,-500.0,0.00049589,31]
[312670648,1706142655569,-3710.41,0.00049589,31]
[312670649,1706142655579,-559.051742,0.00049589,31]
[312670650,1706142655588,-500.0,0.00049589,31]
[312670651,1706142655598,-500.0,0.00049589,31]
[312670652,1706142655607,-1451.54,0.00049589,31]
[312670653,1706142655617,-500.0,0.00049589,31]
[312670654,1706142655627,-737.72,0.00049589,31]
[312670655,1706142655638,-658.3,0.00049589,31]
[312670656,1706142655647,-500.0,0.00049589,31]
[312670657,1706142655657,-500.0,0.00049589,31]
[312670658,1706142655666,-500.0,0.00049589,31]
[312670659,1706142655676,-5000.0,0.00049589,14]
[312670660,1706142655686,-536.66,0.00049589,31]
[312670661,1706142655696,-748.16,0.00049589,31]
[312670662,1706142655705,-500.0,0.00049589,31]
[312670663,1706142655715,-448.82781641,0.00049589,31]
[312670664,1706142655725,-500.0,0.00049589,31]
[312670665,1706142655734,-500.0,0.00049589,31]
[312670666,1706142655744,-655.7,0.00049589,31]
[312670667,1706142655754,-370.31,0.00049589,31]
[312670668,1706142655763,-937.73,0.00049589,2]
[312670669,1706142655773,-673.27,0.00049589,31]
[312670670,1706142655784,-678.69,0.00049589,31]
[312670671,1706142655798,-500.0,0.00049589,31]
[312670672,1706142655807,-764.66,0.00049589,31]
[312670673,1706142655817,-500.0,0.00049589,31]
[312670674,1706142655827,-820.44,0.00049589,31]
[312670675,1706142655837,-797.85,0.00049589,31]
[312670676,1706142655846,-500.0,0.00049589,31]
[312670677,1706142655856,-500.0,0.00049589,31]
[312670678,1706142655867,-500.0,0.00049589,31]
[312670679,1706142655877,-500.0,0.00049589,31]
[312670680,1706142655888,-618.86,0.00049589,31]
[312670681,1706142655897,-515.5,0.00049589,31]
[312670682,1706142655907,-500.0,0.00049589,31]
[312670683,1706142655917,-500.0,0.00049589,31]
[312670684,1706142655926,-792.67,0.00049589,31]
[312670685,1706142655937,-500.0,0.00049589,31]
[312670686,1706142655947,-1129.79,0.00049589,31]
[312670687,1706142655958,-500.0,0.00049589,31]
[312670688,1706142655968,-717.84,0.00049589,31]
[312670689,1706142655978,-500.0,0.00049589,31]
[312670690,1706142655989,-600.26,0.00049589,31]
[312670691,1706142655998,-500.0,0.00049589,31]
[312670692,1706142656009,-510.96,0.00049589,31]
[312670693,1706142656019,-500.0,0.00049589,31]
[312670694,1706142656029,-500.0,0.00049589,31]
[312670695,1706142656040,-689.9,0.00049589,31]
[312670696,1706142656050,-500.0,0.00049589,31]
[312670697,1706142656059,-594.93,0.00049589,2]
[312670698,1706142656069,-738.6,0.00049589,31]
[312670699,1706142656079,-724.18,0.00049589,31]
[312670700,1706142656089,-1187.72,0.00049589,31]
[312670701,1706142656099,-757.86,0.00049589,2]
[312670702,1706142656108,-754.82,0.00049589,31]
[312670703,1706142656118,-500.0,0.00049589,31]
[312670704,1706142656128,-500.0,0.00049589,31]
[312670705,1706142656138,-500.0,0.00049589,31]
[312670706,1706142656148,-500.0,0.00049589,31]
[312670707,1706142656158,-1281.32,0.00049589,31]
[312670708,1706142656168,-2728.94,0.00049589,31]
[312670709,1706142656179,-557.24,0.00049589,31]
[312670710,1706142656189,-693.29,0.00049589,31]
[312670711,1706142656199,-232.0,0.0004979,2]
[312670712,1706142656209,-1000.0,0.000498,120]
[312670713,1706142656219,-2205.37187775,0.0004986,2]
[312670714,1706142656229,-500.0,0.00049863,17]
[312670715,1706142656239,-500.0,0.00049863,31]
[312670716,1706142656249,-500.0,0.00049863,31]
[312670717,1706142656258,-500.0,0.00049863,31]
[312670718,1706142656268,-500.0,0.00049863,31]
[312670719,1706142656278,-500.0,0.00049863,31]
[312670720,1706142656289,-500.0,0.00049863,31]
[312670721,1706142656298,-500.0,0.00049863,31]
[312670722,1706142656308,-500.0,0.00049863,31]
[312670723,1706142656318,-595.87,0.00049863,31]
[312670724,1706142656327,-500.0,0.00049863,31]
[312670725,1706142656337,-153.69048133,0.00049863,31]
[312670726,1706142656346,-500.0,0.00049863,31]
[312670727,1706142656356,-500.0,0.00049863,31]
[312670728,1706142656365,-566.38110487,0.00049863,31]
[312670729,1706142656375,-500.0,0.00049863,31]
[312670730,1706142656385,-500.0,0.00049863,31]
[312670731,1706142656395,-545.8,0.00049863,31]
[312670732,1706142656404,-500.0,0.00049863,31]
[312670733,1706142656414,-500.0,0.00049863,31]
[312670734,1706142656424,-417.18325998,0.00049863,31]
[312670735,1706142656433,-500.0,0.00049863,31]
[312670736,1706142656443,-500.0,0.00049863,31]
[312670737,1706142656452,-500.0,0.00049863,31]
[312670738,1706142656462,-500.0,0.00049863,31]
[312670739,1706142656472,-500.0,0.00049863,31]
[312670740,1706142656483,-517.148583,0.00049863,31]
[312670741,1706142656493,-500.0,0.00049863,31]
[312670742,1706142656503,-577.26303136,0.00049863,31]
[312670743,1706142656513,-500.0,0.00049863,31]
[312670744,1706142656522,-500.0,0.00049863,31]
[312670745,1706142656532,-500.0,0.00049863,31]
[312670746,1706142656542,-500.0,0.00049863,31]
[312670747,1706142656551,-500.0,0.00049863,31]
[312670748,1706142656561,-500.0,0.00049863,31]
[312670749,1706142656571,-500.0,0.00049863,31]
[312670750,1706142656580,-500.0,0.00049863,31]
[312670751,1706142656591,-500.0,0.00049863,31]
[312670752,1706142656601,-500.0,0.00049863,31]
[312670753,1706142656611,-500.0,0.00049863,31]
[312670754,1706142656621,-500.0,0.00049863,31]
[312670755,1706142656631,-500.0,0.00049863,31]
[312670756,1706142656641,-500.0,0.00049863,31]
[312670757,1706142656650,-500.0,0.00049863,31]
[312670758,1706142656661,-500.0,0.00049863,31]
[312670759,1706142656671,-500.0,0.00049863,31]
[312670760,1706142656680,-591.26933367,0.00049863,31]
[312670761,1706142656690,-500.0,0.00049863,31]
[312670762,1706142656700,-500.0,0.00049863,31]
[312670763,1706142656710,-500.0,0.00049863,31]
[312670764,1706142656720,-500.0,0.00049863,31]
[312670765,1706142656730,-500.0,0.00049863,31]
[312670766,1706142656739,-500.0,0.00049863,31]
[312670767,1706142656749,-500.0,0.00049863,31]
[312670768,1706142656759,-500.0,0.00049863,31]
[312670769,1706142656769,-500.0,0.00049863,31]
[312670770,1706142656780,-500.0,0.00049863,31]
[312670771,1706142656791,-500.0,0.00049863,31]
[312670772,1706142656804,-500.0,0.00049863,31]
[312670773,1706142656814,-500.0,0.00049863,31]
[312670774,1706142656824,-500.0,0.00049863,31]
[312670775,1706142656833,-500.0,0.00049863,31]
[312670776,1706142656843,-500.0,0.00049863,31]
[312670777,1706142656853,-500.0,0.00049863,31]
[312670778,1706142656862,-500.0,0.00049863,31]
[312670779,1706142656872,-500.0,0.00049863,31]
[312670780,1706142656882,-634.6397092,0.00049863,31]
[312670781,1706142656892,-500.0,0.00049863,31]
[312670782,1706142656901,-500.0,0.00049863,31]
[312670783,1706142656911,-500.0,0.00049863,31]
[312670784,1706142656921,-500.0,0.00049863,31]
[312670785,1706142656931,-500.0,0.00049863,20]
[312670786,1706142656940,-500.0,0.00049863,31]
[312670787,1706142656950,-500.0,0.00049863,31]
[312670788,1706142656959,-500.0,0.00049863,31]
[312670789,1706142656968,-225.35134149,0.00049863,14]
[312670790,1706142656978,-500.0,0.00049863,31]
[312670791,1706142656988,-500.0,0.00049863,31]
[312670792,1706142656997,-500.0,0.00049863,31]
[312670793,1706142657007,-500.0,0.00049863,31]
[312670794,1706142657016,-500.0,0.00049863,31]
[312670795,1706142657026,-373.77639618,0.00049863,31]
[312670796,1706142657035,-500.0,0.00049863,14]
[312670797,1706142657045,-500.0,0.00049863,31]
[312670798,1706142657055,-500.0,0.00049863,31]
[312670799,1706142657065,-500.0,0.00049863,31]
[312670800,1706142657075,-500.0,0.00049863,31]
[312670801,1706142657084,-500.0,0.00049863,31]
[312670802,1706142657094,-500.0,0.00049863,31]
[312670803,1706142657103,-500.0,0.00049863,31]
[312670804,1706142657113,-500.0,0.00049863,31]
[312670805,1706142657122,-500.0,0.00049863,31]
[312670806,1706142657131,-500.0,0.00049863,31]
[312670807,1706142657141,-413.66798453,0.00049863,31]
[312670808,1706142657150,-500.0,0.00049863,31]
[312670809,1706142657160,-500.0,0.00049863,31]
[312670810,1706142657169,-500.0,0.00049863,31]
[312670811,1706142657178,-500.0,0.00049863,31]
[312670812,1706142657188,-500.0,0.00049863,31]
[312670813,1706142657197,-500.0,0.00049863,31]
[312670814,1706142657207,-1202.05,0.00049863,31]
[312670815,1706142657217,-546.04,0.00049863,31]
[312670816,1706142657227,-500.0,0.00049863,31]
[312670817,1706142657237,-500.0,0.00049863,31]
[312670818,1706142657247,-500.0,0.00049863,31]
[312670819,1706142657257,-500.0,0.00049863,31]
[312670820,1706142657267,-471.16625714,0.00049863,31]
[312670821,1706142657277,-689.23,0.00049863,2]
[312670822,1706142657288,-500.0,0.00049863,31]
[312670823,1706142657298,-839.27,0.00049863,2]
[312670824,1706142657308,-500.0,0.00049863,31]
[312670825,1706142657317,-500.0,0.00049863,31]
[312670826,1706142657326,-500.0,0.00049863,31]
[312670827,1706142657336,-500.0,0.00049863,31]
[312670828,1706142657345,-500.0,0.00049863,31]
[312670829,1706142657355,-1213.27,0.00049863,31]
[312670830,1706142657365,-500.0,0.00049863,31]
[312670831,1706142657374,-500.0,0.00049863,31]
[312670832,1706142657384,-500.0,0.00049863,31]
[312670833,1706142657394,-500.0,0.00049863,31]
[312670834,1706142657404,-689.7,0.00049863,31]
[312670835,1706142657413,-500.0,0.00049863,31]
[312670836,1706142657657,-500.0,0.00049863,2]
[312670837,1706142657668,-500.0,0.00049863,31]
[312670838,1706142657678,-500.0,0.00049863,31]
[312670839,1706142657687,-500.0,0.00049863,31]
[312670840,1706142657697,-500.0,0.00049863,31]
[312670841,1706142657706,-688.21,0.00049863,31]
[312670842,1706142657715,-500.0,0.00049863,2]
[312670843,1706142657725,-500.0,0.00049863,31]
[312670844,1706142657735,-500.0,0.00049863,31]
[312670845,1706142657744,-527.15,0.00049863,31]
[312670846,1706142657754,-500.0,0.00049863,2]
[312670847,1706142657763,-500.0,0.00049863,31]
[312670848,1706142657773,-500.0,0.00049863,31]
[312670849,1706142657782,-500.0,0.00049863,31]
[312670850,1706142657795,-556.3,0.00049863,31]
[312670851,1706142657805,-976.84,0.00049863,7]
[312670852,1706142657815,-500.0,0.00049863,31]
[312670853,1706142657824,-565.89,0.00049863,31]
[312670854,1706142657835,-500.0,0.00049863,31]
[312670855,1706142657845,-500.0,0.00049863,31]
[312670856,1706142657854,-500.0,0.00049863,31]
[312670857,1706142657864,-500.0,0.00049863,31]
[312670858,1706142657873,-500.0,0.00049863,31]
[312670859,1706142657884,-1000.0,0.00049863,2]
[312670860,1706142657894,-500.0,0.00049863,31]
[312670861,1706142657903,-500.0,0.00049863,31]
[312670862,1706142657912,-500.0,0.00049863,31]
[312670863,1706142657921,-500.0,0.00049863,31]
[312670864,1706142657931,-500.0,0.00049863,31]
[312670865,1706142657940,-500.0,0.00049863,31]
[312670866,1706142657949,-500.0,0.00049863,31]
[312670867,1706142657958,-500.0,0.00049863,31]
[312670868,1706142657969,-500.0,0.00049863,31]
[312670869,1706142657978,-500.0,0.00049863,31]
[312670870,1706142657988,-500.0,0.00049863,31]
[312670871,1706142657997,-500.0,0.00049863,31]
[312670872,1706142658006,-500.0,0.00049863,31]
[312670873,1706142658016,-500.0,0.00049863,31]
[312670874,1706142658025,-500.0,0.00049863,31]
[312670875,1706142658035,-781.79,0.00049863,31]
[312670876,1706142658045,-500.0,0.00049863,31]
[312670877,1706142658053,-500.0,0.00049863,31]
[312670878,1706142658062,-500.0,0.00049863,31]
[312670879,1706142658072,-500.0,0.00049863,31]
[312670880,1706142658081,-500.0,0.00049863,31]
[312670881,1706142658090,-500.0,0.00049863,31]
[312670882,1706142658099,-500.0,0.00049863,31]
[312670883,1706142658111,-500.0,0.00049863,31]
[312670884,1706142658120,-1179.82,0.00049863,31]
[312670885,1706142658129,-500.0,0.00049863,31]
[312670886,1706142658138,-3431.79,0.00049863,15]
[312670887,1706142658147,-500.0,0.00049863,31]
[312670888,1706142658157,-568.5,0.00049863,31]
[312670889,1706142658165,-500.0,0.00049863,31]
[312670890,1706142658175,-500.0,0.00049863,31]
[312670891,1706142658184,-500.0,0.00049863,31]
[312670892,1706142658193,-1640.43,0.00049863,31]
[312670893,1706142658203,-500.0,0.00049863,31]
[312670894,1706142658212,-500.0,0.00049863,31]
[312670895,1706142658222,-500.0,0.00049863,31]
[312670896,1706142658231,-500.0,0.00049863,31]
[312670897,1706142658240,-500.0,0.00049863,31]
[312670898,1706142658249,-500.0,0.00049863,31]
[312670899,1706142658258,-599.18,0.00049863,31]
[312670900,1706142658268,-500.0,0.00049863,31]
[312670901,1706142658277,-500.0,0.00049863,31]
[312670902,1706142658286,-3450.92,0.00049863,31]
[312670903,1706142658296,-826.78,0.00049863,120]
[312670904,1706142658305,-500.0,0.00049863,31]
[312670905,1706142658314,-500.0,0.00049863,31]
[312670906,1706142658323,-500.0,0.00049863,31]
[312670907,1706142658332,-500.0,0.00049863,31]
[312670908,1706142658341,-500.0,0.00049863,31]
[312670909,1706142658350,-500.0,0.00049863,31]
[312670910,1706142658359,-500.0,0.00049863,31]
[312670911,1706142658368,-500.0,0.00049863,31]
[312670912,1706142658377,-500.0,0.00049863,31]
[312670913,1706142658386,-500.0,0.00049863,31]
[312670914,1706142658395,-500.0,0.00049863,31]
[312670915,1706142658404,-500.0,0.00049863,31]
[312670916,1706142658413,-500.0,0.00049863,31]
[312670917,1706142658422,-500.0,0.00049863,31]
[312670918,1706142658431,-549.31,0.00049863,31]
[312670919,1706142658440,-500.0,0.00049863,31]
[312670920,1706142658449,-500.0,0.00049863,31]
[312670921,1706142658457,-500.0,0.00049863,31]
[312670922,1706142658466,-951.5,0.00049863,31]
[312670923,1706142658475,-500.0,0.00049863,31]
[312670924,1706142658485,-500.0,0.00049863,31]
[312670925,1706142658493,-500.0,0.00049863,31]
[312670926,1706142658502,-506.14,0.00049863,31]
[312670927,1706142658511,-500.0,0.00049863,31]
[312670928,1706142658520,-500.0,0.00049863,31]
[312670929,1706142658529,-500.0,0.00049863,31]
[312670930,1706142658539,-500.0,0.00049863,31]
[312670931,1706142658550,-500.0,0.00049863,31]
[312670932,1706142658559,-500.0,0.00049863,31]
[312670933,1706142658568,-500.0,0.00049863,31]
[312670934,1706142658577,-500.0,0.00049863,31]
[312670935,1706142658586,-500.0,0.00049863,31]
[312670936,1706142658596,-500.0,0.00049863,31]
[312670937,1706142658605,-500.0,0.00049863,31]
[312670938,1706142658614,-500.0,0.00049863,31]
[312670939,1706142658626,-395.03112958,0.00049863,31]
[312670940,1706142658636,-500.0,0.00049863,31]
[312670941,1706142658645,-500.0,0.00049863,31]
[312670942,1706142658654,-500.0,0.00049863,31]
[312670943,1706142658663,-500.0,0.00049863,31]
[312670944,1706142658673,-500.0,0.00049863,31]
[312670945,1706142658682,-500.0,0.00049863,31]
[312670946,1706142658691,-586.01,0.00049863,31]
[312670947,1706142658701,-610.51,0.00049863,2]
[312670948,1706142658710,-500.0,0.00049863,31]
[312670949,1706142658720,-787.32,0.00049863,31]
[312670950,1706142658729,-500.0,0.00049863,31]
[312670951,1706142658739,-1518.82,0.00049863,2]
[312670952,1706142658748,-500.0,0.00049863,31]
[312670953,1706142658757,-500.0,0.00049863,31]
[312670954,1706142658766,-500.0,0.00049863,31]
[312670955,1706142658776,-500.0,0.00049863,31]
[312670956,1706142658785,-696.9,0.00049863,31]
[312670957,1706142658794,-500.0,0.00049863,31]
[312670958,1706142658807,-500.0,0.00049863,31]
[312670959,1706142658816,-500.0,0.00049863,120]
[312670960,1706142658826,-500.0,0.00049863,31]
[312670961,1706142658835,-839.16,0.00049863,31]
[312670962,1706142658845,-949.05,0.00049863,31]
[312670963,1706142658855,-1090.8,0.00049863,7]
[312670964,1706142658864,-500.0,0.00049863,31]
[312670965,1706142658873,-500.0,0.00049863,31]
[312670966,1706142658884,-500.0,0.00049863,31]
[312670967,1706142658893,-500.0,0.00049863,31]
[312670968,1706142658902,-500.0,0.00049863,31]
[312670969,1706142658911,-500.0,0.00049863,31]
[312670970,1706142658920,-500.0,0.00049863,31]
[312670971,1706142658929,-500.0,0.00049863,31]
[312670972,1706142658939,-500.0,0.00049863,31]
[312670973,1706142658948,-500.0,0.00049863,31]
[312670974,1706142658957,-500.0,0.00049863,31]
[312670975,1706142658966,-500.0,0.00049863,31]
[312670976,1706142658976,-500.0,0.00049863,31]
[312670977,1706142658985,-500.0,0.00049863,31]
[312670978,1706142658995,-500.0,0.00049863,31]
[312670979,1706142659005,-500.0,0.00049863,31]
[312670980,1706142659014,-500.0,0.00049863,31]
[312670981,1706142659024,-500.0,0.00049863,31]
[312670982,1706142659034,-500.0,0.00049863,31]
[312670983,1706142659043,-500.0,0.00049863,31]
[312670984,1706142659052,-500.0,0.00049863,31]
[312670985,1706142659061,-500.0,0.00049863,31]
[312670986,1706142659070,-300.0,0.00049863,31]
[312670987,1706142659080,-500.0,0.00049863,31]
[312670988,1706142659089,-500.0,0.00049863,31]
[312670989,1706142659099,-500.0,0.00049863,31]
[312670990,1706142659108,-569.39,0.00049863,31]
[312670991,1706142659117,-500.0,0.00049863,31]
[312670992,1706142659127,-500.0,0.00049863,31]
[312670993,1706142659136,-500.0,0.00049863,31]
[312670994,1706142659146,-500.0,0.00049863,31]
[312670995,1706142659155,-500.0,0.00049863,31]
[312670996,1706142659164,-500.0,0.00049863,31]
[312670997,1706142659173,-500.0,0.00049863,31]
[312670998,1706142659183,-500.0,0.00049863,31]
[312670999,1706142659192,-500.0,0.00049863,31]
[312671000,1706142659202,-500.0,0.00049863,31]
[312671001,1706142659212,-500.0,0.00049863,31]
[312671002,1706142659221,-500.0,0.00049863,31]
[312671003,1706142659230,-500.0,0.00049863,31]
[312671004,1706142659239,-500.0,0.00049863,31]
[312671005,1706142659248,-500.0,0.00049863,31]
[312671006,1706142659257,-500.0,0.00049863,31]
[312671007,1706142659266,-500.0,0.00049863,31]
[312671008,1706142659275,-500.0,0.00049863,31]
[312671009,1706142659286,-500.0,0.00049863,31]
[312671010,1706142659295,-500.0,0.00049863,31]
[312671011,1706142659304,-1012.49,0.00049863,31]
[312671012,1706142659313,-500.0,0.00049863,31]
[312671013,1706142659323,-500.0,0.00049863,31]
[312671014,1706142659332,-500.0,0.00049863,31]
[312671015,1706142659341,-500.0,0.00049863,31]
[312671016,1706142659350,-500.0,0.00049863,31]
[312671017,1706142659360,-500.0,0.00049863,31]